bitfinex/quotes_ETHUSD_20251214
["timestamp","ask_amount","ask_price","bid_price","bid_amount"]
[1765728206539,0.2877,3082.3,3082.2,0.76135773]
[1765728206744,0.2877,3082.3,3082.1,0.002]
[1765728207042,0.2884,3082.2,3082.1,0.002]
[1765728207424,0.7429,3082.2,3082.1,0.002]
[1765728209310,0.2884,3082.2,3082.1,0.002]
[1765728209846,0.7429,3082.2,3082.1,0.002]
[1765728212714,0.001,3082.3,3082.1,0.4977]
[1765728212926,0.513,3082.2,3082.1,0.4977]
[1765728213263,0.513,3082.2,3082.1,0.002]
[1765728213551,0.513,3082.2,3082.1,0.4977]
[1765728213941,0.001,3082.3,3082.1,0.4977]
[1765728214410,0.001,3082.3,3082.2,4.21363579]
[1765728215923,0.001,3082.3,3082.2,4.97894588]
[1765728217837,0.001,3082.3,3082.2,1.73451009]
[1765728218064,0.001,3082.3,3082.2,4.97894588]
[1765728218361,0.001,3082.3,3082.2,6.47792517]
[1765728220355,0.001,3082.3,3082.2,36.47792517]
[1765728220516,0.001,3082.3,3082.2,29.46192517]
[1765728221535,0.001,3082.3,3082.2,13.18392517]
[1765728221945,0.001,3082.3,3082.2,12.62092517]
[1765728223657,0.001,3082.3,3082.2,6.47792517]
[1765728224019,0.001,3082.3,3082.2,6.07242117]
[1765728224254,0.001,3082.3,3082.2,5.59892117]
[1765728224452,0.001,3082.3,3082.2,6.07242117]
[1765728224952,0.001,3082.3,3082.2,5.08592117]
[1765728225659,0.001,3082.3,3082.2,5.55942117]
[1765728226025,0.001,3082.3,3082.2,5.96492517]
[1765728226725,0.001,3082.3,3082.2,5.55942117]
[1765728227243,0.001,3082.3,3082.2,5.08592117]
[1765728227447,0.289,3082.3,3082.2,4.59022117]
[1765728227829,0.289,3082.3,3082.1,3.24652109]
[1765728228060,0.0046,3082.2,3082.1,0.002]
[1765728228237,0.001,3082.3,3082.2,0.4957]
[1765728229127,0.001,3082.3,3082.2,3.74013579]
[1765728229349,0.001,3082.3,3082.2,0.4957]
[1765728229549,0.001,3082.3,3082.2,3.24443579]
[1765728229747,0.289,3082.3,3082.1,3.24650555]
[1765728230028,0.0046,3082.2,3082.1,3.24650555]
[1765728230250,0.0046,3082.2,3082.1,0.002]
[1765728230429,0.4653,3082.2,3082.1,0.002]
[1765728231329,0.99083105,3082.2,3082.1,0.002]
[1765728231963,1.08185688,3082.2,3082.1,0.002]
[1765728235267,0.99083105,3082.2,3082.1,0.002]
[1765728235436,0.4653,3082.2,3082.1,0.002]
[1765728235834,0.001,3082.3,3082.1,0.4977]
[1765728236434,0.2759,3082.2,3082.1,0.002]
[1765728236946,0.7469,3082.2,3082.1,0.002]
[1765728238949,1.69875363,3082.2,3082.1,0.002]
[1765728239347,1.78977946,3082.2,3082.1,0.002]
[1765728239543,5.03421525,3082.2,3082.1,0.002]
[1765728239951,5.16412481,3082.2,3082.1,0.002]
[1765728241256,1.35766319,3082.2,3082.1,0.002]
[1765728241463,1.2599,3082.2,3082.1,0.002]
[1765728241640,0.2759,3082.2,3082.1,0.002]
[1765728241963,0.7889,3082.2,3082.1,0.002]
[1765728243256,0.2759,3082.2,3082.1,0.002]
[1765728243462,0.514,3082.3,3082.1,0.4984]
[1765728243968,0.2759,3082.2,3082.1,0.002]
[1765728245558,0.2769,3082.2,3082.1,0.002]
[1765728248048,0.001,3082.2,3082.1,0.6874]
[1765728248284,0.001,3082.2,3082.1,1.1454]
[1765728249988,0.001,3082.2,3082.1,4.38994105]
[1765728250363,0.001,3082.2,3082.1,5.15359988]
[1765728250560,0.001,3082.2,3082.1,45.72453619]
[1765728250760,0.001,3082.2,3082.1,49.62286232]
[1765728250961,0.001,3082.2,3082.1,49.13953619]
[1765728253060,0.001,3082.2,3082.1,45.72453619]
[1765728253287,0.001,3082.2,3082.1,46.13326975]
[1765728253591,0.001,3082.2,3082.1,46.62724588]
[1765728254061,0.001,3082.2,3082.1,45.72453619]
[1765728256594,0.001,3082.2,3082.1,15.72453619]
[1765728256897,0.001,3082.2,3082.1,46.21851232]
[1765728257784,0.001,3082.2,3082.1,46.20651264]
[1765728258094,0.001,3082.2,3082.1,49.62151264]
[1765728258291,0.001,3082.2,3082.1,49.12753651]
[1765728260994,0.001,3082.2,3082.1,45.71253651]
[1765728261967,0.001,3082.2,3082.1,46.12127007]
[1765728262300,0.001,3082.2,3082.1,46.6152462]
[1765728263096,0.001,3082.2,3082.1,46.20651264]
[1765728263668,0.001,3082.2,3082.1,16.20651264]
[1765728263865,0.001,3082.2,3082.1,46.20651264]
[1765728264606,0.001,3082.2,3082.1,49.12753651]
[1765728267182,0.001,3082.2,3082.1,50.0302462]
[1765728267811,0.001,3082.2,3082.1,49.62151264]
[1765728269004,0.001,3082.2,3082.1,19.62151264]
[1765728269297,0.001,3082.2,3082.1,49.62151264]
[1765728270010,0.001,3082.2,3082.1,19.62151264]
[1765728270215,0.001,3082.2,3082.1,49.62151264]
[1765728270718,0.001,3082.2,3082.1,53.46151264]
[1765728271009,0.001,3082.2,3082.1,52.96753651]
[1765728272204,0.001,3082.2,3082.1,49.55253651]
[1765728273507,0.001,3082.2,3082.1,44.76605784]
[1765728273733,0.001,3082.2,3082.1,49.55253651]
[1765728276012,0.001,3082.2,3082.1,44.76605784]
[1765728276213,0.001,3082.2,3082.1,44.75105784]
[1765728276794,0.001,3082.2,3082.1,46.10627007]
[1765728277117,0.001,3082.2,3082.1,15.69753651]
[1765728277302,0.001,3082.2,3082.1,45.69753651]
[1765728278996,0.001,3082.2,3082.1,46.10627007]
[1765728279203,0.001,3082.2,3082.1,45.69753651]
[1765728282635,0.001,3082.2,3082.1,49.53753651]
[1765728283227,0.001,3082.2,3082.1,49.94627007]
[1765728283815,0.001,3082.2,3082.1,49.53753651]
[1765728285008,0.001,3082.2,3082.1,49.94627007]
[1765728285413,0.001,3082.2,3082.1,49.53753651]
[1765728286128,0.001,3082.2,3082.1,53.36127007]
[1765728286326,0.001,3082.6,3082.4,3.820504]
[1765728286634,0.001,3083.2,3082.4,3.820504]
[1765728286635,0.001,3083.2,3083.0,0.98597929]
[1765728286802,0.001,3083.2,3083.1,31.96887929]
[1765728287004,0.4734,3083.2,3083.1,1.49897929]
[1765728287203,0.7568,3083.2,3083.1,1.09347529]
[1765728287403,0.7568,3083.2,3083.1,0.513]
[1765728287840,0.7568,3083.2,3082.9,3.24368703]
[1765728288047,0.001,3083.2,3083.1,3.82396398]
[1765728288213,0.001,3083.2,3083.1,38.61044265]
[1765728288541,0.7549,3083.2,3083.1,38.61044265]
[1765728289116,0.7549,3083.2,3083.1,8.61044265]
[1765728289317,0.2844,3083.2,3083.1,39.01594665]
[1765728289516,0.2844,3083.2,3083.1,39.48584665]
[1765728289517,0.001,3083.2,3083.1,39.48584665]
[1765728289907,0.001,3083.2,3083.1,39.94844665]
[1765728290106,0.001,3083.2,3083.1,39.48584665]
[1765728290314,0.2844,3083.2,3083.1,39.01594665]
[1765728290926,0.7549,3083.2,3083.1,7.15546798]
[1765728291131,0.7549,3083.2,3083.1,14.74246798]
[1765728291332,0.7549,3083.2,3083.1,14.33696398]
[1765728291526,0.7549,3083.2,3083.1,4.33696398]
[1765728297026,0.7549,3083.2,3083.1,0.513]
[1765728299040,0.7549,3083.2,3083.0,3.24355079]
[1765728299235,0.4769,3083.1,3083.0,3.24355079]
[1765728299447,0.7558,3083.1,3083.0,3.24355079]
[1765728300349,0.001,3083.2,3083.1,43.64899269]
[1765728300655,0.001,3083.2,3083.1,34.22946798]
[1765728300826,0.2819,3083.2,3083.1,34.22946798]
[1765728301450,0.001,3083.2,3083.1,34.71036798]
[1765728301758,0.001,3083.2,3083.1,35.16286798]
[1765728301919,0.001,3083.2,3083.1,34.71036798]
[1765728302744,0.001,3083.2,3083.1,34.22946798]
[1765728302745,0.2799,3083.2,3083.1,34.22946798]
[1765728302938,0.7548,3083.2,3083.1,34.22946798]
[1765728303651,0.7548,3083.2,3083.1,33.82396398]
[1765728304833,0.2799,3083.2,3083.1,33.82396398]
[1765728306352,0.7548,3083.2,3083.1,33.82396398]
[1765728306649,0.7548,3083.2,3083.1,33.75648869]
[1765728307048,0.7548,3083.2,3083.0,3.82400687]
[1765728307257,0.7558,3083.1,3082.8,0.513]
[1765728307468,0.1804,3082.9,3082.8,4.33727962]
[1765728307622,0.4612,3082.9,3082.8,3.75680433]
[1765728307821,0.9362,3082.9,3082.5,0.58247529]
[1765728308025,0.2781,3082.6,3082.5,0.58247529]
[1765728308250,0.2781,3082.6,3082.5,17.52359532]
[1765728308430,0.755,3082.6,3082.5,0.002]
[1765728309066,3.99901479,3082.6,3082.5,0.002]
[1765728309226,4.7232971,3082.6,3082.5,0.002]
[1765728309945,4.81432293,3082.6,3082.5,0.002]
[1765728310372,5.32732293,3082.6,3082.5,0.002]
[1765728310860,5.90779822,3082.6,3082.5,0.002]
[1765728311237,6.31330222,3082.6,3082.5,0.002]
[1765728311457,13.01946412,3082.6,3082.5,0.002]
[1765728312161,5.30377239,3082.6,3082.5,0.002]
[1765728312464,3.99901479,3082.6,3082.5,0.002]
[1765728312624,0.755,3082.6,3082.5,0.002]
[1765728319676,0.2781,3082.6,3082.5,0.002]
[1765728319984,0.2808,3082.6,3082.5,0.002]
[1765728320293,0.7558,3082.6,3082.5,0.002]
[1765728321691,0.2808,3082.6,3082.5,0.002]
[1765728324395,0.4779,3083.2,3082.5,0.4829]
[1765728324591,0.4779,3083.2,3082.5,0.9354]
[1765728325407,0.001,3083.2,3083.1,0.4809]
[1765728325569,0.4779,3083.2,3082.6,6.48802958]
[1765728327292,0.4779,3083.2,3083.1,0.2]
[1765728327496,0.7587,3083.2,3083.1,0.2]
[1765728327989,0.7587,3083.2,3083.1,3.44348869]
[1765728328190,0.2818,3083.2,3083.1,3.44348869]
[1765728328492,0.7455,3083.2,3083.1,3.44348869]
[1765728329600,0.7455,3083.2,3083.1,0.2]
[1765728329966,3.98888349,3083.2,3083.1,0.2]
[1765728330173,4.71219162,3083.2,3083.1,0.2]
[1765728335269,4.75273391,3083.2,3083.1,0.2]
[1765728338995,4.71219162,3083.2,3083.1,0.2]
[1765728340997,1.46880813,3083.2,3083.1,0.2]
[1765728341168,1.98180813,3083.2,3083.1,0.2]
[1765728341371,1.2585,3083.2,3083.1,0.2]
[1765728341573,0.7948,3083.2,3083.1,0.2]
[1765728341795,0.2818,3083.2,3083.1,3.44348869]
[1765728342199,0.2818,3083.2,3083.1,0.2]
[1765728342700,0.7455,3083.2,3083.1,0.2]
[1765728344882,0.2818,3083.2,3083.1,3.44348869]
[1765728345087,0.001,3083.2,3083.1,5.05780693]
[1765728346092,0.2949,3083.2,3083.1,0.2]
[1765728346794,0.7569,3083.2,3083.1,0.2]
[1765728348711,0.001,3083.2,3083.1,4.38908869]
[1765728348883,0.469,3083.2,3083.1,3.90758869]
[1765728349208,0.001,3083.2,3083.1,3.90758869]
[1765728349506,0.001,3083.2,3083.1,5.33605701]
[1765728350384,0.001,3083.2,3083.1,4.67085701]
[1765728354919,0.001,3083.2,3083.1,3.90758869]
[1765728356122,0.001,3083.2,3083.1,4.39828869]
[1765728356696,0.001,3083.2,3083.1,3.90758869]
[1765728360391,0.001,3083.2,3083.1,4.39828869]
[1765728362807,0.7568,3083.2,3083.1,0.2]
[1765728364918,0.001,3083.2,3083.1,0.6577]
[1765728365123,0.001,3083.2,3083.1,1.1484]
[1765728365320,0.001,3083.2,3083.1,4.39188869]
[1765728366034,0.001,3083.2,3083.1,1.1484]
[1765728366232,0.001,3083.2,3083.1,3.90118869]
[1765728366530,0.001,3083.2,3083.1,4.39188869]
[1765728366835,0.001,3083.2,3083.1,5.15543692]
[1765728369526,0.001,3083.2,3083.1,35.15543692]
[1765728369728,0.4562,3083.2,3083.1,0.96354823]
[1765728369927,0.7585,3083.2,3083.1,0.2]
[1765728373131,4.00188349,3083.2,3083.1,0.2]
[1765728379241,0.7585,3083.2,3083.1,0.2]
[1765728380644,4.00188349,3083.2,3083.1,0.2]
[1765728380844,5.20533211,3083.2,3083.1,0.2]
[1765728381443,1.96194862,3083.2,3083.1,0.2]
[1765728382550,0.7585,3083.2,3083.1,0.2]
[1765728383445,1.2715,3083.2,3083.1,0.2]
[1765728384745,0.514,3083.2,3083.1,0.2]
[1765728385248,0.9677,3083.2,3083.1,0.2]
[1765728386038,2.24552004,3083.2,3083.1,0.2]
[1765728386225,2.79450267,3083.2,3083.1,0.2]
[1765728389059,6.03788616,3083.2,3083.1,0.2]
[1765728389532,2.79450267,3083.2,3083.1,0.2]
[1765728390730,6.03788616,3083.2,3083.1,0.2]
[1765728391665,2.79450267,3083.2,3083.1,0.2]
[1765728392360,2.49060267,3083.2,3083.1,0.2]
[1765728392554,5.73398616,3083.2,3083.1,0.2]
[1765728392955,2.79450267,3083.2,3083.1,0.2]
[1765728393863,6.03788616,3083.2,3083.1,0.2]
[1765728394459,2.79450267,3083.2,3083.1,0.2]
[1765728394662,5.48890353,3083.2,3083.1,0.2]
[1765728396070,10.31786257,3083.2,3083.1,0.2]
[1765728396272,10.27732028,3083.2,3083.1,0.2]
[1765728397663,10.85779557,3083.2,3083.1,0.2]
[1765728398771,10.85950358,3083.2,3083.1,0.2]
[1765728399242,7.48885971,3083.2,3083.1,0.2]
[1765728406862,7.57988554,3083.2,3083.1,0.2]
[1765728409780,7.06688554,3083.2,3083.1,0.2]
[1765728410080,7.57988554,3083.2,3083.1,0.2]
[1765728410682,7.48885971,3083.2,3083.1,0.2]
[1765728411376,7.18495971,3083.2,3083.1,0.2]
[1765728411552,6.67195971,3083.2,3083.1,0.2]
[1765728411746,6.73125971,3083.2,3083.1,0.6658]
[1765728411950,4.79877882,3083.2,3083.1,0.6658]
[1765728412378,4.79877882,3083.2,3083.1,1.1257]
[1765728412585,5.31177882,3083.2,3083.1,1.1257]
[1765728413151,5.31177882,3083.2,3083.1,0.6658]
[1765728413352,5.31177882,3083.2,3083.1,1.1257]
[1765728414082,1.48792004,3083.2,3083.1,1.1257]
[1765728414878,4.73130353,3083.2,3083.1,1.1257]
[1765728415275,4.73130353,3083.2,3083.1,0.6658]
[1765728416258,1.48792004,3083.2,3083.1,0.6658]
[1765728416470,1.48792004,3083.2,3083.1,1.1509]
[1765728416669,0.97492004,3083.2,3083.1,1.1509]
[1765728416874,0.001,3083.2,3083.1,1.1509]
[1765728417273,0.001,3083.2,3083.1,4.39438869]
[1765728417473,0.001,3083.2,3083.1,1.91470856]
[1765728419887,0.001,3083.2,3083.1,5.15819725]
[1765728420721,0.001,3083.2,3083.1,1.42960856]
[1765728420862,0.3052,3083.2,3083.1,0.2]
[1765728421187,5.55649261,3083.2,3083.1,0.2]
[1765728421570,9.38035139,3083.2,3083.1,0.2]
[1765728421757,10.72025637,3083.2,3083.1,0.2]
[1765728422358,11.12576037,3083.2,3083.1,0.2]
[1765728422570,15.91425298,3083.2,3083.1,0.2]
[1765728423377,0.98597929,3083.1,3082.5,0.002]
[1765728423572,8.88900852,3082.6,3082.5,0.002]
[1765728423791,11.10325147,3082.6,3082.5,0.002]
[1765728424063,11.56765147,3082.6,3082.5,0.002]
[1765728424262,11.69756356,3082.6,3082.5,0.002]
[1765728425293,0.98597929,3082.5,3082.1,0.002]
[1765728425588,6.0741719,3082.2,3082.1,0.002]
[1765728425788,9.83160769,3082.2,3082.1,0.002]
[1765728425997,10.29600769,3082.2,3082.1,0.002]
[1765728426566,9.89050369,3082.2,3082.1,0.002]
[1765728426995,8.91310369,3082.2,3082.1,0.002]
[1765728427192,5.99334642,3082.2,3082.1,0.002]
[1765728427384,6.45774642,3082.2,3082.1,0.002]
[1765728427562,11.24623903,3082.2,3082.1,0.002]
[1765728431297,16.16464795,3082.2,3082.1,0.002]
[1765728431494,16.57015195,3082.2,3082.1,0.002]
[1765728434102,21.36591007,3082.2,3082.1,0.002]
[1765728434803,1.45797929,3082.1,3082.0,1e-08]
[1765728434976,3.69160607,3082.1,3082.0,1e-08]
[1765728435800,3.69160607,3082.1,3081.5,0.002]
[1765728436007,10.96522136,3081.7,3081.5,0.002]
[1765728436185,11.47822136,3081.7,3081.5,0.002]
[1765728436382,0.99647929,3081.6,3081.3,0.002]
[1765728436573,10.87139553,3081.4,3081.3,0.002]
[1765728436773,14.11667365,3081.4,3081.3,0.002]
[1765728436973,14.58107365,3081.4,3081.3,0.002]
[1765728441773,15.09407365,3081.4,3081.3,0.002]
[1765728442804,14.58107365,3081.4,3081.3,0.002]
[1765728443102,17.13755795,3081.4,3081.3,0.002]
[1765728443510,11.36439983,3081.4,3081.3,0.002]
[1765728443677,8.46491377,3081.4,3081.3,0.002]
[1765728443877,8.46491377,3081.4,3081.3,0.9393]
[1765728443878,3.88825565,3081.4,3081.3,0.9393]
[1765728444212,4.46873094,3081.4,3081.3,0.4542]
[1765728444416,9.26448906,3081.4,3081.3,0.4542]
[1765728445392,9.56868906,3081.4,3081.3,0.002]
[1765728445709,11.51651659,3081.4,3081.3,0.002]
[1765728446019,16.71777871,3081.4,3081.3,0.002]
[1765728448805,16.20477871,3081.4,3081.3,0.002]
[1765728449009,18.25202059,3081.4,3081.3,0.002]
[1765728449910,17.73902059,3081.4,3081.3,0.002]
[1765728450106,18.25202059,3081.4,3081.3,0.002]
[1765728450742,23.04777871,3081.4,3081.3,0.002]
[1765728450907,18.25202059,3081.4,3081.3,0.002]
[1765728451100,18.38198925,3081.4,3081.3,0.002]
[1765728451302,16.69648525,3081.4,3081.3,0.002]
[1765728451495,17.36861659,3081.4,3081.3,0.002]
[1765728452188,17.84641659,3081.4,3081.3,0.002]
[1765728454223,23.04767871,3081.4,3081.3,0.002]
[1765728454596,23.17764737,3081.4,3081.3,0.002]
[1765728458297,22.18684737,3081.4,3081.3,0.002]
[1765728458503,17.90598925,3081.4,3081.3,0.002]
[1765728458706,23.17764737,3081.4,3081.3,0.002]
[1765728459793,22.29624337,3081.4,3081.3,0.002]
[1765728460321,22.77214337,3081.4,3081.3,0.002]
[1765728462093,22.77214337,3081.4,3081.3,0.00034122]
[1765728462421,22.29624337,3081.4,3081.3,0.00034122]
[1765728462628,22.77214337,3081.4,3081.3,0.00034122]
[1765728462813,17.50048525,3081.4,3081.3,0.00034122]
[1765728463221,22.77214337,3081.4,3081.3,0.00034122]
[1765728463418,23.17764737,3081.4,3081.3,0.00034122]
[1765728464202,23.17764737,3081.4,3080.9,0.002]
[1765728464405,3.92903973,3081.3,3081.2,0.00034166]
[1765728465203,7.17442317,3081.3,3081.2,0.00034166]
[1765728465398,7.13385588,3081.3,3081.2,0.00034166]
[1765728468334,13.62462276,3081.3,3080.9,0.002]
[1765728468540,6.15716324,3081.0,3080.9,0.002]
[1765728468707,8.54922519,3081.0,3080.9,0.002]
[1765728468908,8.50865395,3081.0,3080.9,0.002]
[1765728469527,11.88434316,3081.0,3080.9,0.002]
[1765728471021,11.88781056,3081.0,3080.9,0.002]
[1765728472813,18.21781056,3081.0,3080.9,0.002]
[1765728474635,23.01703608,3081.0,3080.9,0.002]
[1765728474937,18.21781056,3081.0,3080.9,0.00034216]
[1765728476853,23.01703608,3081.0,3080.9,0.00034216]
[1765728477524,23.01752576,3081.0,3080.9,0.00034216]
[1765728479814,22.02482576,3081.0,3080.9,0.00034216]
[1765728480015,22.53782576,3081.0,3080.9,0.00034216]
[1765728480734,22.98892576,3081.0,3080.9,0.00034216]
[1765728481346,22.47592576,3081.0,3080.9,0.00034216]
[1765728481549,16.9409554,3081.0,3080.9,0.46544216]
[1765728481729,17.4539554,3081.0,3080.9,0.46544216]
[1765728482752,16.9409554,3081.0,3080.9,0.46544216]
[1765728482940,17.4539554,3081.0,3080.9,0.46544216]
[1765728483122,17.0484514,3081.0,3080.9,0.46544216]
[1765728483320,17.0484514,3081.0,3080.9,0.92914216]
[1765728484026,4.04719033,3081.0,3080.9,0.92914216]
[1765728484251,8.64919563,3081.0,3080.9,0.92914216]
[1765728484744,8.13619563,3081.0,3080.9,0.92914216]
[1765728484950,9.22967092,3081.0,3080.9,0.92914216]
[1765728485334,3.91720056,3081.0,3080.9,0.92914216]
[1765728485538,9.22967092,3081.0,3080.9,0.92914216]
[1765728487859,4.43020056,3081.0,3080.9,0.92914216]
[1765728488028,3.91720056,3081.0,3080.9,0.92914216]
[1765728488355,4.43020056,3081.0,3080.9,0.92914216]
[1765728488947,3.82617473,3081.0,3080.9,0.92914216]
[1765728489124,4.33917473,3081.0,3080.9,0.92914216]
[1765728491761,3.82617473,3081.0,3080.9,0.92914216]
[1765728491934,4.33917473,3081.0,3080.9,0.92914216]
[1765728495139,3.82617473,3081.0,3080.9,0.92914216]
[1765728495342,4.33917473,3081.0,3080.9,0.92914216]
[1765728496339,3.82617473,3081.0,3080.9,0.92914216]
[1765728496543,4.33917473,3081.0,3080.9,0.92914216]
[1765728500235,3.24559412,3081.1,3080.9,0.92914216]
[1765728500236,0.001,3081.2,3080.9,0.92914216]
[1765728500439,3.24650752,3081.2,3081.1,0.6564]
[1765728500868,3.24650752,3081.2,3081.1,1.1201]
[1765728501745,0.001,3081.2,3081.1,1.1201]
[1765728502969,0.09202583,3081.2,3081.1,1.1201]
[1765728503183,0.13259443,3081.2,3081.1,1.1201]
[1765728503472,3.3780832,3081.2,3081.1,1.1201]
[1765728504471,3.24648877,3081.2,3081.1,1.1201]
[1765728504678,3.75948877,3081.2,3081.1,1.1201]
[1765728504991,3.24648877,3081.2,3081.1,1.1201]
[1765728505147,3.75948877,3081.2,3081.1,1.1201]
[1765728510070,0.514,3081.2,3081.1,1.1201]
[1765728510271,0.001,3081.2,3081.1,1.1201]
[1765728511145,0.001,3081.2,3081.1,0.4651]
[1765728511345,6.2135496,3081.2,3080.9,0.48514216]
[1765728511586,0.55356992,3081.1,3080.9,0.48514216]
[1765728512078,0.55356992,3081.1,3081.0,0.4937]
[1765728512276,0.60402583,3081.1,3081.0,0.4937]
[1765728512575,3.84961993,3081.1,3081.0,0.9785]
[1765728512804,3.7585941,3081.1,3081.0,0.9785]
[1765728518478,3.2455941,3081.1,3081.0,0.9785]
[1765728518674,3.7585941,3081.1,3081.0,0.9785]
[1765728520979,3.7585941,3081.1,3081.0,0.4937]
[1765728521362,3.7585941,3081.1,3081.0,0.9785]
[1765728522282,3.7595941,3081.1,3081.0,0.9785]
[1765728523451,0.001,3081.1,3081.0,0.9785]
[1765728523956,0.514,3081.1,3081.0,0.9785]
[1765728524380,0.001,3081.1,3081.0,0.9785]
[1765728525563,3.7595941,3081.1,3081.0,0.9785]
[1765728527585,0.001,3081.1,3081.0,0.9785]
[1765728527778,0.514,3081.1,3081.0,0.9785]
[1765728531689,0.001,3081.1,3081.0,0.9785]
[1765728531866,3.2465941,3081.1,3081.0,0.9785]
[1765728534600,0.001,3081.1,3081.0,0.9785]
[1765728535594,0.001,3081.1,3081.0,0.4937]
[1765728537002,3.7014941,3081.1,3080.9,0.00034216]
[1765728537172,6.9470882,3081.1,3080.9,0.00034216]
[1765728538889,3.2465941,3081.1,3081.0,0.4775]
[1765728539198,3.2465941,3081.1,3081.0,0.936]
[1765728539501,3.7595941,3081.1,3081.0,0.936]
[1765728539706,3.2465941,3081.1,3081.0,0.936]
[1765728540002,3.7595941,3081.1,3081.0,0.936]
[1765728540907,0.514,3081.1,3081.0,0.936]
[1765728541284,3.2465941,3081.1,3081.0,0.936]
[1765728541485,0.001,3081.1,3081.0,0.936]
[1765728542114,0.001,3081.1,3081.0,1.3544169]
[1765728543505,0.001,3081.1,3081.0,4.60011634]
[1765728544212,0.001,3081.1,3081.0,1.3544169]
[1765728544786,0.001,3081.1,3081.0,4.60011634]
[1765728545292,0.001,3081.1,3081.0,1.3544169]
[1765728545604,0.001,3081.1,3081.0,4.60011634]
[1765728546376,0.001,3081.1,3081.0,1.3544169]
[1765728547795,0.001,3081.1,3081.0,0.936]
[1765728553445,0.001,3081.1,3081.0,0.4775]
[1765728555418,0.001,3081.1,3080.9,0.00034216]
[1765728555620,0.0049,3081.0,3080.9,0.00034216]
[1765728556319,0.001,3081.1,3080.9,0.00034216]
[1765728556524,0.2725,3081.0,3080.9,0.00034216]
[1765728557520,3.51819944,3081.0,3080.9,0.00034216]
[1765728557708,0.2725,3081.0,3080.9,0.00034216]
[1765728558023,3.51819944,3081.0,3080.9,0.00034216]
[1765728558498,4.01249944,3081.0,3080.9,0.00034216]
[1765728559125,3.51819944,3081.0,3080.9,0.00034216]
[1765728560531,4.03119944,3081.0,3080.9,0.00034216]
[1765728562026,5.30280091,3081.0,3080.9,0.00034216]
[1765728564696,5.8832762,3081.0,3080.9,0.00034216]
[1765728568727,5.8842762,3081.0,3080.9,0.00034216]
[1765728571613,5.92484744,3081.0,3080.9,0.00034216]
[1765728577145,6.05481272,3081.0,3080.9,0.00034216]
[1765728577636,10.85323046,3081.0,3080.9,0.00034216]
[1765728577827,10.81265922,3081.0,3080.9,0.00034216]
[1765728582847,10.29965922,3081.0,3080.9,0.00034216]
[1765728583047,10.81265922,3081.0,3080.9,0.00034216]
[1765728587653,10.29965922,3081.0,3080.9,0.00034216]
[1765728587826,10.81265922,3081.0,3080.9,0.00034216]
[1765728588031,10.31835922,3081.0,3080.9,0.00034216]
[1765728588226,10.81265922,3081.0,3080.9,0.00034216]
[1765728588646,15.61107696,3081.0,3080.9,0.00034216]
[1765728588956,16.01658096,3081.0,3080.9,0.00034216]
[1765728591257,22.34658096,3081.0,3080.9,0.00034216]
[1765728591445,0.98597929,3080.9,3080.8,0.002]
[1765728591627,4.87231298,3080.9,3080.8,0.002]
[1765728592135,0.405504,3080.7,3080.4,0.002]
[1765728592332,10.6812406,3080.5,3080.4,0.002]
[1765728592856,11.71736017,3080.5,3080.4,0.002]
[1765728594147,14.96358643,3080.5,3080.4,0.002]
[1765728594353,16.43805059,3080.5,3080.4,0.002]
[1765728597263,6.35848528,3080.5,3080.4,0.002]
[1765728597446,11.15781229,3080.5,3080.4,0.002]
[1765728597843,12.05251629,3080.5,3080.4,0.002]
[1765728598153,16.8518433,3080.5,3080.4,0.002]
[1765728599652,12.05251629,3080.5,3080.4,0.002]
[1765728600764,11.53951629,3080.5,3080.4,0.002]
[1765728601147,12.05251629,3080.5,3080.4,0.002]
[1765728604867,11.05031629,3080.5,3080.4,0.002]
[1765728605056,10.63741229,3080.5,3080.4,0.4527]
[1765728605261,11.15041229,3080.5,3080.4,0.9295]
[1765728605455,3.82670155,3080.5,3080.4,0.9295]
[1765728605867,4.33970155,3080.5,3080.4,0.9295]
[1765728607470,3.82670155,3080.5,3080.4,0.9295]
[1765728607677,4.33970155,3080.5,3080.4,0.9295]
[1765728608270,3.75922626,3080.5,3080.4,0.9295]
[1765728609267,3.85025209,3080.5,3080.4,0.9295]
[1765728611881,3.24593278,3080.8,3080.4,0.9295]
[1765728612181,0.513,3080.7,3080.5,0.4768]
[1765728612584,0.513,3080.7,3080.6,0.4507]
[1765728612955,3.24584488,3080.9,3080.6,0.4507]
[1765728613168,3.75884488,3080.9,3080.8,0.4507]
[1765728613668,0.001,3081.0,3080.8,0.9275]
[1765728613669,0.514,3081.0,3080.8,0.9275]
[1765728613873,0.514,3081.0,3080.9,0.4507]
[1765728614055,0.514,3081.0,3080.9,0.9275]
[1765728615470,0.60502583,3081.0,3080.9,0.4507]
[1765728615853,3.85072527,3081.0,3080.9,0.4507]
[1765728616071,3.85072527,3081.0,3080.9,0.9275]
[1765728616966,3.33772527,3081.0,3080.9,0.9275]
[1765728617279,3.85072527,3081.0,3080.9,0.9275]
[1765728618785,3.33772527,3081.0,3080.9,0.9275]
[1765728619189,3.85072527,3081.0,3080.9,0.9275]
[1765728619360,3.33772527,3081.0,3080.9,0.9275]
[1765728619717,3.85072527,3081.0,3080.9,0.9275]
[1765728619876,7.09642471,3081.0,3080.5,0.4768]
[1765728620082,3.85072527,3081.0,3080.9,0.4507]
[1765728620315,3.75969944,3081.0,3080.9,0.4507]
[1765728620515,3.75969944,3081.0,3080.9,0.9275]
[1765728622622,3.85072527,3081.0,3080.9,0.4507]
[1765728623031,3.85072527,3081.0,3080.9,0.9275]
[1765728625625,3.75969944,3081.0,3080.9,0.9275]
[1765728627826,0.514,3081.0,3080.9,0.9275]